[Event "Titled Tuesday Blitz June 1 2021"]
[White "Koelle, Tobias"]
[Black "Sarana, Alexey"]
[WhiteFideId "16207378"]
[BlackFideId "24133795"]
[WhiteElo "2364"]
[BlackElo "2629"]
[Result "0-1"]
[Round "01"]
[TimeControl "180+1"]
[Date "2021.06.01"]
[WhiteClock "0:00:05"]
[BlackClock "0:00:13"]

1. d4 {[%clk 0:02:58]}  Nf6 {[%clk 0:03:00]} 2. c4 {[%clk 0:02:56]}  e6 {[%clk 0:02:59]} 3. Bg5 {[%clk 0:02:54]}  d5 {[%clk 0:02:56]} 4. e3 {[%clk 0:02:53]}  Be7 {[%clk 0:02:54]} 5. Nf3 {[%clk 0:02:52]}  h6 {[%clk 0:02:51]} 6. Bh4 {[%clk 0:02:51]}  Nbd7 {[%clk 0:02:50]} 7. Nc3 {[%clk 0:02:50]}  O-O {[%clk 0:02:49]} 8. cxd5 {[%clk 0:02:48]}  Nxd5 {[%clk 0:02:50]} 9. Bxe7 {[%clk 0:02:47]}  Qxe7 {[%clk 0:02:51]} 10. Bd3 {[%clk 0:02:45]}  Nxc3 {[%clk 0:02:48]} 11. bxc3 {[%clk 0:02:46]}  e5 {[%clk 0:02:49]} 12. Qc2 {[%clk 0:02:41]}  Re8 {[%clk 0:02:42]} 13. Nd2 {[%clk 0:02:37]}  c5 {[%clk 0:02:35]} 14. d5 {[%clk 0:02:34]}  Rb8 {[%clk 0:02:20]} 15. c4 {[%clk 0:02:31]}  Nf6 {[%clk 0:02:16]} 16. e4 {[%clk 0:02:30]}  Rf8 {[%clk 0:02:16]} 17. O-O {[%clk 0:02:28]}  Ne8 {[%clk 0:02:16]} 18. a4 {[%clk 0:02:21]}  Nd6 {[%clk 0:02:15]} 19. a5 {[%clk 0:02:20]}  g6 {[%clk 0:02:12]} 20. Nb3 {[%clk 0:02:20]}  b6 {[%clk 0:02:07]} 21. axb6 {[%clk 0:02:21]}  axb6 {[%clk 0:02:07]} 22. Rfb1 {[%clk 0:02:21]}  Qg5 {[%clk 0:01:57]} 23. Kh1 {[%clk 0:02:16]}  Kg7 {[%clk 0:01:49]} 24. f3 {[%clk 0:02:06]}  Bd7 {[%clk 0:01:39]} 25. Ra7 {[%clk 0:02:03]}  Qd8 {[%clk 0:01:26]} 26. Nxc5 {[%clk 0:01:54]}  bxc5 {[%clk 0:01:20]} 27. Rxb8 {[%clk 0:01:55]}  Qxb8 {[%clk 0:01:20]} 28. Rxd7 {[%clk 0:01:38]}  Qb6 {[%clk 0:01:15]} 29. h3 {[%clk 0:01:36]}  Ra8 {[%clk 0:01:14]} 30. Qc3 {[%clk 0:01:35]}  Re8 {[%clk 0:01:08]} 31. Bc2 {[%clk 0:01:31]}  Kg8 {[%clk 0:00:59]} 32. Qb3 {[%clk 0:01:28]}  Qa6 {[%clk 0:00:56]} 33. Qa4 {[%clk 0:01:24]}  Qxa4 {[%clk 0:00:46]} 34. Bxa4 {[%clk 0:01:25]}  Nxc4 {[%clk 0:00:46]} 35. Rc7 {[%clk 0:01:24]}  Ra8 {[%clk 0:00:47]} 36. Bb5 {[%clk 0:01:10]}  Nd6 {[%clk 0:00:36]} 37. Bf1 {[%clk 0:01:09]}  Ra1 {[%clk 0:00:34]} 38. Kg1 {[%clk 0:01:08]}  Nc4 {[%clk 0:00:28]} 39. Kf2 {[%clk 0:01:07]}  Ra2+ {[%clk 0:00:27]} 40. Be2 {[%clk 0:01:06]}  Kf8 {[%clk 0:00:24]} 41. Rxc5 {[%clk 0:01:04]}  Nd6 {[%clk 0:00:24]} 42. Ke3 {[%clk 0:01:00]}  Ra3+ {[%clk 0:00:24]} 43. Bd3 {[%clk 0:00:59]}  Ke7 {[%clk 0:00:24]} 44. Rc7+ {[%clk 0:00:58]}  Kd8 {[%clk 0:00:24]} 45. Rc6 {[%clk 0:00:58]}  Kd7 {[%clk 0:00:24]} 46. Rc1 {[%clk 0:00:53]}  g5 {[%clk 0:00:24]} 47. g4 {[%clk 0:00:52]}  f6 {[%clk 0:00:22]} 48. h4 {[%clk 0:00:52]}  Ra2 {[%clk 0:00:21]} 49. hxg5 {[%clk 0:00:51]}  hxg5 {[%clk 0:00:21]} 50. Rh1 {[%clk 0:00:51]}  Ra3 {[%clk 0:00:21]} 51. Rh7+ {[%clk 0:00:49]}  Ke8 {[%clk 0:00:21]} 52. Ke2 {[%clk 0:00:49]}  Ra2+ {[%clk 0:00:21]} 53. Ke3 {[%clk 0:00:49]}  Ra3 {[%clk 0:00:22]} 54. Rc7 {[%clk 0:00:49]}  Rb3 {[%clk 0:00:21]} 55. Kd2 {[%clk 0:00:47]}  Rb2+ {[%clk 0:00:21]} 56. Rc2 {[%clk 0:00:46]}  Rb3 {[%clk 0:00:21]} 57. Ke3 {[%clk 0:00:46]}  Ra3 {[%clk 0:00:21]} 58. Rc7 {[%clk 0:00:45]}  Kd8 {[%clk 0:00:21]} 59. Rc6 {[%clk 0:00:45]}  Kd7 {[%clk 0:00:21]} 60. Kd2 {[%clk 0:00:45]}  Ra2+ {[%clk 0:00:22]} 61. Rc2 {[%clk 0:00:44]}  Ra3 {[%clk 0:00:22]} 62. Rc3 {[%clk 0:00:44]}  Ra2+ {[%clk 0:00:22]} 63. Bc2 {[%clk 0:00:45]}  Ra1 {[%clk 0:00:21]} 64. Rb3 {[%clk 0:00:43]}  Ra2 {[%clk 0:00:21]} 65. Kd3 {[%clk 0:00:42]}  Ra1 {[%clk 0:00:21]} 66. Rb1 {[%clk 0:00:40]}  Ra3+ {[%clk 0:00:21]} 67. Rb3 {[%clk 0:00:40]}  Ra1 {[%clk 0:00:20]} 68. Rb1 {[%clk 0:00:40]}  Ra2 {[%clk 0:00:21]} 69. Rb6 {[%clk 0:00:33]}  Ra8 {[%clk 0:00:19]} 70. Rb2 {[%clk 0:00:32]}  Ra7 {[%clk 0:00:19]} 71. Rb1 {[%clk 0:00:31]}  Nb7 {[%clk 0:00:19]} 72. Kc4 {[%clk 0:00:30]}  Nd6+ {[%clk 0:00:17]} 73. Kd3 {[%clk 0:00:30]}  Rc7 {[%clk 0:00:17]} 74. Rb6 {[%clk 0:00:29]}  Ke7 {[%clk 0:00:17]} 75. Rc6 {[%clk 0:00:28]}  Ra7 {[%clk 0:00:17]} 76. Rc3 {[%clk 0:00:27]}  Nf7 {[%clk 0:00:17]} 77. Rc6 {[%clk 0:00:27]}  Nh8 {[%clk 0:00:13]} 78. Re6+ {[%clk 0:00:27]}  Kf7 {[%clk 0:00:13]} 79. Bb3 {[%clk 0:00:27]}  Ng6 {[%clk 0:00:13]} 80. Kc2 {[%clk 0:00:26]}  Nf4 {[%clk 0:00:13]} 81. Rc6 {[%clk 0:00:24]}  Ke7 {[%clk 0:00:13]} 82. Kb2 {[%clk 0:00:22]}  Nd3+ {[%clk 0:00:13]} 83. Kc3 {[%clk 0:00:22]}  Nf4 {[%clk 0:00:14]} 84. Bc4 {[%clk 0:00:19]}  Rb7 {[%clk 0:00:13]} 85. Ra6 {[%clk 0:00:18]}  Rd7 {[%clk 0:00:13]} 86. Bb5 {[%clk 0:00:18]}  Rc7+ {[%clk 0:00:12]} 87. Kd2 {[%clk 0:00:18]}  Rb7 {[%clk 0:00:07]} 88. d6+ {[%clk 0:00:14]}  Kf7 {[%clk 0:00:08]} 89. Bc4+ {[%clk 0:00:14]}  Ke8 {[%clk 0:00:07]} 90. Bd5 {[%clk 0:00:10]}  Nxd5 {[%clk 0:00:05]} 91. exd5 {[%clk 0:00:10]}  Kd7 {[%clk 0:00:05]} 92. Ke3 {[%clk 0:00:10]}  Rb4 {[%clk 0:00:06]} 93. Rc6 {[%clk 0:00:10]}  Rd4 {[%clk 0:00:06]} 94. Rc7+ {[%clk 0:00:09]}  Kxd6 {[%clk 0:00:06]} 95. Rf7 {[%clk 0:00:09]}  Rf4 {[%clk 0:00:06]} 96. Rf8 {[%clk 0:00:08]}  Kxd5 {[%clk 0:00:07]} 97. Rd8+ {[%clk 0:00:08]}  Ke6 {[%clk 0:00:07]} 98. Re8+ {[%clk 0:00:09]}  Kf7 {[%clk 0:00:08]} 99. Ra8 {[%clk 0:00:09]}  Rb4 {[%clk 0:00:08]} 100. Ra6 {[%clk 0:00:08]}  Rb7 {[%clk 0:00:08]} 101. Ra8 {[%clk 0:00:08]}  Rb3+ {[%clk 0:00:07]} 102. Ke4 {[%clk 0:00:08]}  Rb4+ {[%clk 0:00:06]} 103. Ke3 {[%clk 0:00:08]}  Kg6 {[%clk 0:00:07]} 104. Rg8+ {[%clk 0:00:08]}  Kh7 {[%clk 0:00:07]} 105. Ra8 {[%clk 0:00:09]}  Rf4 {[%clk 0:00:07]} 106. Ra7+ {[%clk 0:00:08]}  Kg6 {[%clk 0:00:08]} 107. Ra8 {[%clk 0:00:08]}  e4 {[%clk 0:00:08]} 108. fxe4 {[%clk 0:00:08]}  Rxg4 {[%clk 0:00:08]} 109. Rg8+ {[%clk 0:00:08]}  Kf7 {[%clk 0:00:08]} 110. Ra8 {[%clk 0:00:08]}  Rg3+ {[%clk 0:00:09]} 111. Kd4 {[%clk 0:00:08]}  Rg1 {[%clk 0:00:09]} 112. Ra6 {[%clk 0:00:06]}  Re1 {[%clk 0:00:09]} 113. Ra8 {[%clk 0:00:04]}  g4 {[%clk 0:00:09]} 114. Ra2 {[%clk 0:00:03]}  Kg6 {[%clk 0:00:09]} 115. Ra8 {[%clk 0:00:03]}  Kg5 {[%clk 0:00:09]} 116. Rf8 {[%clk 0:00:01]}  g3 {[%clk 0:00:08]} 117. Kd5 {[%clk 0:00:02]}  Ra1 {[%clk 0:00:07]} 118. Rg8+ {[%clk 0:00:02]}  Kf4 {[%clk 0:00:07]} 119. Ke6 {[%clk 0:00:02]}  Ra6+ {[%clk 0:00:08]} 120. Kf7 {[%clk 0:00:02]}  Kxe4 {[%clk 0:00:08]} 121. Rxg3 {[%clk 0:00:02]}  f5 {[%clk 0:00:08]} 122. Rg1 {[%clk 0:00:02]}  f4 {[%clk 0:00:08]} 123. Re1+ {[%clk 0:00:02]}  Kf3 {[%clk 0:00:09]} 124. Ra1 {[%clk 0:00:03]}  Rxa1 {[%clk 0:00:06]} 125. Kf6 {[%clk 0:00:02]}  Kg3 {[%clk 0:00:06]} 126. Ke7 {[%clk 0:00:03]}  f3 {[%clk 0:00:07]} 127. Kd7 {[%clk 0:00:04]}  f2 {[%clk 0:00:08]} 128. Kc7 {[%clk 0:00:04]}  f1=Q {[%clk 0:00:09]} 129. Kb8 {[%clk 0:00:05]}  Qd1 {[%clk 0:00:10]} 130. Kb7 {[%clk 0:00:06]}  Rc1 {[%clk 0:00:11]} 131. Kb6 {[%clk 0:00:04]}  Rc2 {[%clk 0:00:12]} 132. Ka5 {[%clk 0:00:05]}  Qb1 {[%clk 0:00:13]} 0-1


[Site "https://www.chess.com"]

[Event "Titled Tuesday Blitz June 1 2021"]
[White "Lagarde, Maxime"]
[Black "Kesgin, Halit Kaan"]
[WhiteFideId "662399"]
[BlackFideId "6349137"]
[WhiteElo "2630"]
[BlackElo "2040"]
[Result "1-0"]
[Round "01"]
[TimeControl "180+1"]
[Date "2021.06.01"]
[WhiteClock "0:02:16"]
[BlackClock "0:01:41"]

1. e4 {[%clk 0:03:00]}  e6 {[%clk 0:02:54]} 2. d3 {[%clk 0:02:58]}  d5 {[%clk 0:02:54]} 3. Nd2 {[%clk 0:02:59]}  Nf6 {[%clk 0:02:54]} 4. Ngf3 {[%clk 0:02:59]}  c5 {[%clk 0:02:54]} 5. g3 {[%clk 0:02:59]}  Nc6 {[%clk 0:02:55]} 6. Bg2 {[%clk 0:03:00]}  Be7 {[%clk 0:02:55]} 7. O-O {[%clk 0:03:00]}  O-O {[%clk 0:02:55]} 8. Re1 {[%clk 0:03:00]}  b5 {[%clk 0:02:55]} 9. e5 {[%clk 0:02:59]}  Nd7 {[%clk 0:02:55]} 10. Nf1 {[%clk 0:03:00]}  a5 {[%clk 0:02:54]} 11. h4 {[%clk 0:03:00]}  b4 {[%clk 0:02:53]} 12. N1h2 {[%clk 0:03:00]}  a4 {[%clk 0:02:53]} 13. Bf4 {[%clk 0:03:00]}  a3 {[%clk 0:02:52]} 14. b3 {[%clk 0:02:59]}  Ba6 {[%clk 0:02:52]} 15. Ng5 {[%clk 0:02:58]}  Nd4 {[%clk 0:02:45]} 16. Qh5 {[%clk 0:02:57]}  Bxg5 {[%clk 0:02:39]} 17. hxg5 {[%clk 0:02:57]}  Nxc2 {[%clk 0:02:32]} 18. Bf1 {[%clk 0:02:57]}  c4 {[%clk 0:02:21]} 19. Ng4 {[%clk 0:02:53]}  cxd3 {[%clk 0:02:11]} 20. Kg2 {[%clk 0:02:52]}  d2 {[%clk 0:02:04]} 21. Red1 {[%clk 0:02:50]}  Bb7 {[%clk 0:01:56]} 22. Bd3 {[%clk 0:02:46]}  g6 {[%clk 0:01:56]} 23. Qh6 {[%clk 0:02:42]}  d4+ {[%clk 0:01:53]} 24. f3 {[%clk 0:02:40]}  f5 {[%clk 0:01:52]} 25. gxf6 {[%clk 0:02:35]}  Ne1+ {[%clk 0:01:44]} 26. Rxe1 {[%clk 0:02:33]}  dxe1=Q {[%clk 0:01:44]} 27. Rxe1 {[%clk 0:02:34]}  Qe8 {[%clk 0:01:41]} 28. Qg7# {[%clk 0:02:16]} 1-0


[Site "https://www.chess.com"]

[Event "Titled Tuesday Blitz June 1 2021"]
[White "Novikov, Evgenij"]
[Black "Martinez Alcantara, Jose Eduardo"]
[WhiteFideId "4125380"]
[BlackFideId "3805662"]
[WhiteElo "2242"]
[BlackElo "2690"]
[Result "0-1"]
[Round "01"]
[TimeControl "180+1"]
[Date "2021.06.01"]
[WhiteClock "0:00:03"]
[BlackClock "0:00:09"]

1. e4 {[%clk 0:02:57]}  c5 {[%clk 0:02:59]} 2. d3 {[%clk 0:02:56]}  Nc6 {[%clk 0:02:57]} 3. c3 {[%clk 0:02:56]}  g6 {[%clk 0:02:55]} 4. Be2 {[%clk 0:02:55]}  Bg7 {[%clk 0:02:54]} 5. Nf3 {[%clk 0:02:55]}  d5 {[%clk 0:02:52]} 6. Nbd2 {[%clk 0:02:54]}  Nf6 {[%clk 0:02:51]} 7. O-O {[%clk 0:02:54]}  O-O {[%clk 0:02:51]} 8. Qc2 {[%clk 0:02:54]}  e5 {[%clk 0:02:50]} 9. a3 {[%clk 0:02:52]}  a5 {[%clk 0:02:38]} 10. a4 {[%clk 0:02:37]}  b6 {[%clk 0:02:37]} 11. Rd1 {[%clk 0:02:34]}  d4 {[%clk 0:02:25]} 12. Nc4 {[%clk 0:02:31]}  Re8 {[%clk 0:02:10]} 13. Bg5 {[%clk 0:02:10]}  Ba6 {[%clk 0:01:58]} 14. cxd4 {[%clk 0:02:07]}  cxd4 {[%clk 0:01:41]} 15. Qb3 {[%clk 0:02:01]}  Rb8 {[%clk 0:01:35]} 16. Bf1 {[%clk 0:01:47]}  b5 {[%clk 0:01:32]} 17. axb5 {[%clk 0:01:46]}  Bxb5 {[%clk 0:01:32]} 18. Qa3 {[%clk 0:01:17]}  Bf8 {[%clk 0:01:25]} 19. Qa2 {[%clk 0:01:15]}  a4 {[%clk 0:01:13]} 20. Rac1 {[%clk 0:01:04]}  h6 {[%clk 0:01:08]} 21. Bd2 {[%clk 0:00:59]}  Nd7 {[%clk 0:01:04]} 22. Na3 {[%clk 0:00:57]}  Qb6 {[%clk 0:00:45]} 23. Nxb5 {[%clk 0:00:57]}  Qxb5 {[%clk 0:00:46]} 24. Rc4 {[%clk 0:00:51]}  Nb6 {[%clk 0:00:43]} 25. Rc2 {[%clk 0:00:44]}  Nb4 {[%clk 0:00:38]} 26. Bxb4 {[%clk 0:00:43]}  Qxb4 {[%clk 0:00:37]} 27. Rc7 {[%clk 0:00:38]}  Re7 {[%clk 0:00:37]} 28. Rdc1 {[%clk 0:00:33]}  Qd6 {[%clk 0:00:29]} 29. R1c6 {[%clk 0:00:30]}  Qd8 {[%clk 0:00:29]} 30. Rxg6+ {[%clk 0:00:26]}  Kh7 {[%clk 0:00:29]} 31. Rxe7 {[%clk 0:00:22]}  Qxe7 {[%clk 0:00:30]} 32. Rc6 {[%clk 0:00:21]}  Bg7 {[%clk 0:00:29]} 33. h4 {[%clk 0:00:21]}  Qd7 {[%clk 0:00:29]} 34. Rc5 {[%clk 0:00:20]}  Qd6 {[%clk 0:00:26]} 35. Rb5 {[%clk 0:00:20]}  Qc6 {[%clk 0:00:22]} 36. Rb4 {[%clk 0:00:18]}  Rb7 {[%clk 0:00:20]} 37. h5 {[%clk 0:00:17]}  Bf6 {[%clk 0:00:20]} 38. g3 {[%clk 0:00:17]}  Qc5 {[%clk 0:00:18]} 39. Qa3 {[%clk 0:00:16]}  Be7 {[%clk 0:00:19]} 40. Rxb6 {[%clk 0:00:09]}  Rxb6 {[%clk 0:00:18]} 41. Qa2 {[%clk 0:00:08]}  Kg7 {[%clk 0:00:15]} 42. Bh3 {[%clk 0:00:06]}  Qb5 {[%clk 0:00:10]} 43. Kg2 {[%clk 0:00:05]}  Bf6 {[%clk 0:00:11]} 44. Bf5 {[%clk 0:00:04]}  Ra6 {[%clk 0:00:09]} 45. g4 {[%clk 0:00:04]}  Qxd3 {[%clk 0:00:08]} 46. g5 {[%clk 0:00:03]}  hxg5 {[%clk 0:00:05]} 47. Qd5 {[%clk 0:00:04]}  Qb3 {[%clk 0:00:04]} 48. h6+ {[%clk 0:00:04]}  Kxh6 {[%clk 0:00:02]} 49. Qd7 {[%clk 0:00:03]}  Kg7 {[%clk 0:00:03]} 50. Qe8 {[%clk 0:00:03]}  Qb6 {[%clk 0:00:02]} 51. Nxe5 {[%clk 0:00:04]}  Bxe5 {[%clk 0:00:03]} 52. Qxe5+ {[%clk 0:00:04]}  Qf6 {[%clk 0:00:03]} 53. Qb5 {[%clk 0:00:04]}  Rd6 {[%clk 0:00:03]} 54. Qd3 {[%clk 0:00:04]}  Qe5 {[%clk 0:00:03]} 55. Qh3 {[%clk 0:00:02]}  Rh6 {[%clk 0:00:03]} 56. Qg4 {[%clk 0:00:02]}  Qh2+ {[%clk 0:00:03]} 57. Kf1 {[%clk 0:00:02]}  Qh1+ {[%clk 0:00:04]} 58. Ke2 {[%clk 0:00:02]}  Qh5 {[%clk 0:00:05]} 59. Qxh5 {[%clk 0:00:02]}  Rxh5 {[%clk 0:00:06]} 60. Kd3 {[%clk 0:00:03]}  Rh2 {[%clk 0:00:05]} 61. Bd7 {[%clk 0:00:02]}  Rxf2 {[%clk 0:00:06]} 62. Bxa4 {[%clk 0:00:03]}  Rxb2 {[%clk 0:00:06]} 63. Bd7 {[%clk 0:00:02]}  Rb6 {[%clk 0:00:06]} 64. Bg4 {[%clk 0:00:02]}  Rd6 {[%clk 0:00:06]} 65. e5 {[%clk 0:00:02]}  Rd8 {[%clk 0:00:06]} 66. Bf5 {[%clk 0:00:02]}  Kf8 {[%clk 0:00:07]} 67. e6 {[%clk 0:00:02]}  fxe6 {[%clk 0:00:06]} 68. Bxe6 {[%clk 0:00:02]}  Ke7 {[%clk 0:00:07]} 69. Bg4 {[%clk 0:00:03]}  Kf6 {[%clk 0:00:08]} 70. Bd1 {[%clk 0:00:03]}  Ke5 {[%clk 0:00:09]} 0-1


[Site "https://www.chess.com"]

[Event "Titled Tuesday Blitz June 1 2021"]
[White "Pastar, Slaven"]
[Black "Zhigalko, Sergei"]
[WhiteFideId "14402718"]
[BlackFideId "13502956"]
[WhiteElo "2227"]
[BlackElo "2662"]
[Result "0-1"]
[Round "01"]
[TimeControl "180+1"]
[Date "2021.06.01"]
[WhiteClock "0:00:04"]
[BlackClock "0:00:09"]

1. b3 {[%clk 0:03:00]}  e5 {[%clk 0:02:55]} 2. Bb2 {[%clk 0:03:00]}  d6 {[%clk 0:02:53]} 3. e3 {[%clk 0:02:58]}  Nf6 {[%clk 0:02:53]} 4. d4 {[%clk 0:02:57]}  e4 {[%clk 0:02:52]} 5. d5 {[%clk 0:02:53]}  c6 {[%clk 0:02:49]} 6. c4 {[%clk 0:02:39]}  Nbd7 {[%clk 0:02:46]} 7. Nc3 {[%clk 0:02:35]}  Nc5 {[%clk 0:02:40]} 8. b4 {[%clk 0:02:29]}  Qb6 {[%clk 0:02:36]} 9. Ba3 {[%clk 0:01:55]}  Ncd7 {[%clk 0:02:28]} 10. Rb1 {[%clk 0:01:32]}  Ne5 {[%clk 0:02:26]} 11. Qd4 {[%clk 0:01:20]}  Bf5 {[%clk 0:02:15]} 12. c5 {[%clk 0:01:08]}  Qc7 {[%clk 0:02:09]} 13. dxc6 {[%clk 0:00:54]}  bxc6 {[%clk 0:01:58]} 14. b5 {[%clk 0:00:48]}  dxc5 {[%clk 0:01:07]} 15. Bxc5 {[%clk 0:00:47]}  Bxc5 {[%clk 0:01:08]} 16. Qxc5 {[%clk 0:00:47]}  Nfd7 {[%clk 0:01:08]} 17. Qb4 {[%clk 0:00:20]}  c5 {[%clk 0:01:02]} 18. Qb3 {[%clk 0:00:09]}  Nb6 {[%clk 0:00:53]} 19. Nh3 {[%clk 0:00:05]}  Bxh3 {[%clk 0:00:52]} 20. gxh3 {[%clk 0:00:06]}  Nf3+ {[%clk 0:00:52]} 21. Ke2 {[%clk 0:00:06]}  Rd8 {[%clk 0:00:48]} 22. Rd1 {[%clk 0:00:06]}  Rxd1 {[%clk 0:00:41]} 23. Kxd1 {[%clk 0:00:05]}  O-O {[%clk 0:00:41]} 24. Be2 {[%clk 0:00:05]}  c4 {[%clk 0:00:31]} 25. Qc2 {[%clk 0:00:04]}  Qe5 {[%clk 0:00:15]} 26. Kc1 {[%clk 0:00:04]}  f5 {[%clk 0:00:12]} 27. Rd1 {[%clk 0:00:04]}  Qxh2 {[%clk 0:00:08]} 28. Bxf3 {[%clk 0:00:05]}  exf3 {[%clk 0:00:09]} 29. Rd6 {[%clk 0:00:04]}  Qxd6 {[%clk 0:00:09]} 0-1


[Site "https://www.chess.com"]

[Event "Titled Tuesday Blitz June 1 2021"]
[White "Popilski, Gil"]
[Black "Oparin, Grigoriy"]
[WhiteFideId "2809060"]
[BlackFideId "24125890"]
[WhiteElo "2537"]
[BlackElo "2628"]
[Result "0-1"]
[Round "01"]
[TimeControl "180+1"]
[Date "2021.06.01"]
[WhiteClock "0:00:10"]
[BlackClock "0:01:09"]

1. e4 {[%clk 0:03:00]}  d6 {[%clk 0:03:00]} 2. d4 {[%clk 0:02:59]}  Nf6 {[%clk 0:03:00]} 3. Nc3 {[%clk 0:02:59]}  Nbd7 {[%clk 0:03:00]} 4. f4 {[%clk 0:02:56]}  e5 {[%clk 0:03:00]} 5. Nf3 {[%clk 0:02:55]}  exd4 {[%clk 0:02:57]} 6. Qxd4 {[%clk 0:02:55]}  Nb6 {[%clk 0:02:48]} 7. Be3 {[%clk 0:02:51]}  Be7 {[%clk 0:02:47]} 8. O-O-O {[%clk 0:02:50]}  O-O {[%clk 0:02:48]} 9. h3 {[%clk 0:02:50]}  Re8 {[%clk 0:02:45]} 10. g4 {[%clk 0:02:48]}  Bf8 {[%clk 0:02:44]} 11. g5 {[%clk 0:02:25]}  Nh5 {[%clk 0:02:16]} 12. Rg1 {[%clk 0:02:23]}  g6 {[%clk 0:02:15]} 13. Qd2 {[%clk 0:02:09]}  Bg7 {[%clk 0:02:14]} 14. Bd4 {[%clk 0:02:08]}  Be6 {[%clk 0:02:03]} 15. Bxg7 {[%clk 0:02:05]}  Nxg7 {[%clk 0:02:04]} 16. Nd4 {[%clk 0:02:04]}  d5 {[%clk 0:01:47]} 17. Qf2 {[%clk 0:01:57]}  c5 {[%clk 0:01:30]} 18. Nxe6 {[%clk 0:01:55]}  fxe6 {[%clk 0:01:31]} 19. Qxc5 {[%clk 0:01:42]}  Rc8 {[%clk 0:01:32]} 20. Qf2 {[%clk 0:01:32]}  Qc7 {[%clk 0:01:27]} 21. exd5 {[%clk 0:01:26]}  exd5 {[%clk 0:01:26]} 22. Bb5 {[%clk 0:01:18]}  Rf8 {[%clk 0:01:24]} 23. Rgf1 {[%clk 0:01:16]}  Ne6 {[%clk 0:01:23]} 24. Nxd5 {[%clk 0:00:57]}  Nxd5 {[%clk 0:01:23]} 25. Rxd5 {[%clk 0:00:56]}  Nxf4 {[%clk 0:01:22]} 26. Rd7 {[%clk 0:00:52]}  Nd3+ {[%clk 0:01:19]} 27. Rxd3 {[%clk 0:00:47]}  Rxf2 {[%clk 0:01:20]} 28. Rxf2 {[%clk 0:00:48]}  Qc5 {[%clk 0:01:16]} 29. Bd7 {[%clk 0:00:19]}  Qxf2 {[%clk 0:01:15]} 30. Bxc8 {[%clk 0:00:18]}  Qg1+ {[%clk 0:01:15]} 31. Rd1 {[%clk 0:00:15]}  Qxg5+ {[%clk 0:01:16]} 32. Kb1 {[%clk 0:00:15]}  Qe7 {[%clk 0:01:13]} 33. Bg4 {[%clk 0:00:14]}  h5 {[%clk 0:01:13]} 34. Bf3 {[%clk 0:00:14]}  Kg7 {[%clk 0:01:12]} 35. Rf1 {[%clk 0:00:12]}  b6 {[%clk 0:01:11]} 36. Bd5 {[%clk 0:00:12]}  Qe5 {[%clk 0:01:10]} 37. Bc4 {[%clk 0:00:12]}  Qh2 {[%clk 0:01:09]} 38. Be6 {[%clk 0:00:10]}  Qe2 {[%clk 0:01:09]} 0-1


[Site "https://www.chess.com"]

[Event "Titled Tuesday Blitz June 1 2021"]
[White "Reprintsev, Alexander"]
[Black "Makhnev, Denis"]
[WhiteFideId "14100541"]
[BlackFideId "13707647"]
[WhiteElo "2177"]
[BlackElo "2549"]
[Result "1-0"]
[Round "01"]
[TimeControl "180+1"]
[Date "2021.06.01"]
[WhiteClock "0:01:08"]
[BlackClock "0:00:02"]

1. e4 {[%clk 0:02:49]}  e5 {[%clk 0:02:58]} 2. Bc4 {[%clk 0:02:48]}  Nf6 {[%clk 0:02:58]} 3. Nc3 {[%clk 0:02:48]}  Bc5 {[%clk 0:02:27]} 4. d3 {[%clk 0:02:43]}  c6 {[%clk 0:02:22]} 5. f4 {[%clk 0:02:40]}  d5 {[%clk 0:02:14]} 6. exd5 {[%clk 0:02:39]}  exf4 {[%clk 0:02:08]} 7. Qe2+ {[%clk 0:02:36]}  Be7 {[%clk 0:01:57]} 8. Bxf4 {[%clk 0:02:32]}  O-O {[%clk 0:01:50]} 9. d6 {[%clk 0:02:00]}  Bxd6 {[%clk 0:01:48]} 10. Bxd6 {[%clk 0:02:00]}  Qxd6 {[%clk 0:01:46]} 11. O-O-O {[%clk 0:02:00]}  Bg4 {[%clk 0:01:40]} 12. Nf3 {[%clk 0:02:00]}  Nbd7 {[%clk 0:01:40]} 13. h3 {[%clk 0:01:57]}  Rae8 {[%clk 0:01:39]} 14. Qf1 {[%clk 0:01:57]}  Be6 {[%clk 0:01:08]} 15. Nd2 {[%clk 0:01:54]}  Bd5 {[%clk 0:01:01]} 16. Nxd5 {[%clk 0:01:52]}  cxd5 {[%clk 0:01:00]} 17. Bb5 {[%clk 0:01:52]}  Rc8 {[%clk 0:00:59]} 18. Bxd7 {[%clk 0:01:47]}  Qxd7 {[%clk 0:00:58]} 19. Kb1 {[%clk 0:01:47]}  Rc6 {[%clk 0:00:54]} 20. Nb3 {[%clk 0:01:46]}  Rfc8 {[%clk 0:00:54]} 21. c3 {[%clk 0:01:45]}  b6 {[%clk 0:00:19]} 22. Qf4 {[%clk 0:01:44]}  a5 {[%clk 0:00:17]} 23. Rhe1 {[%clk 0:01:43]}  h6 {[%clk 0:00:16]} 24. g4 {[%clk 0:01:43]}  Re6 {[%clk 0:00:14]} 25. Nd4 {[%clk 0:01:39]}  Ree8 {[%clk 0:00:14]} 26. g5 {[%clk 0:01:38]}  hxg5 {[%clk 0:00:14]} 27. Qxg5 {[%clk 0:01:38]}  Rxe1 {[%clk 0:00:12]} 28. Rxe1 {[%clk 0:01:38]}  Re8 {[%clk 0:00:12]} 29. Rg1 {[%clk 0:01:38]}  g6 {[%clk 0:00:03]} 30. Qxf6 {[%clk 0:01:37]}  Qxh3 {[%clk 0:00:04]} 31. Nf5 {[%clk 0:01:09]}  Qxd3+ {[%clk 0:00:02]} 32. Kc1 {[%clk 0:01:09]}  Qxf5 {[%clk 0:00:01]} 33. Qxf5 {[%clk 0:01:08]}  Re1+ {[%clk 0:00:02]} 34. Rxe1 {[%clk 0:01:08]}  gxf5 {[%clk 0:00:02]} 35. Rf1 {[%clk 0:01:08]} 1-0


[Site "https://www.chess.com"]